fUSD/lending_fUSD_20250324
["ID","MTS","AMOUNT","RATE_DAILY","PERIOD"]
[356610437,1742817045926,-695.23036606,0.00035,40]
[356610438,1742817045936,-850.0,0.00035,2]
[356610439,1742817045946,-328.64,0.000351,14]
[356610440,1742817045956,-724.86,0.00035188,2]
[356610441,1742817045965,-152.0,0.00035277,3]
[356610442,1742817045975,-703.38243088,0.00035317,2]
[356610443,1742817045985,-150.0,0.00035616,2]
[356610444,1742817045995,-502.0,0.00035753,2]
[356610445,1742817046004,-1502.16,0.00036244,2]
[356610446,1742817046014,-150.0,0.00036986,2]
[356610447,1742817046024,-649.46274932,0.00037,2]
[356610448,1742817046034,-900.0,0.00037,2]
[356610449,1742817046044,-2000.0,0.00037,2]
[356610450,1742817046054,-858.88,0.00037019,2]
[356610451,1742817046064,-703.38243088,0.00037361,2]
[356610452,1742817046074,-724.86,0.00037452,2]
[356610453,1742817046083,-151.3,0.0003758,2]
[356610454,1742817046093,-4171.61067113,0.0003759,2]
[356610455,1742817046103,-22948.4929902,0.0003759,3]
[356610456,1742817046117,-153.16,0.000376,31]
[356610457,1742817046126,-153.16,0.000376,31]
[356610458,1742817046137,-153.16,0.000376,31]
[356610459,1742817046147,-153.16,0.000376,31]
[356610460,1742817046162,-153.16,0.000376,31]
[356610461,1742817046172,-153.16,0.000376,31]
[356610462,1742817046182,-153.16,0.000376,31]
[356610463,1742817046192,-153.16,0.000376,31]
[356610464,1742817046202,-153.16,0.000376,31]
[356610465,1742817046213,-153.16,0.000376,31]
[356610466,1742817046223,-153.16,0.000376,31]
[356610467,1742817046233,-153.16,0.000376,31]
[356610468,1742817046243,-153.16,0.000376,31]
[356610469,1742817046252,-153.16,0.000376,31]
[356610470,1742817046262,-153.16,0.000376,31]
[356610471,1742817046272,-153.16,0.000376,31]
[356610472,1742817046281,-1500.0,0.00037615,2]
[356610473,1742817046291,-167.08116376,0.000378,2]
[356610474,1742817046302,-152.0,0.00037881,4]
[356610475,1742817046312,-28928.6533453,0.00037996,3]
[356610476,1742817046321,-2181.97211996,0.00038,2]
[356610477,1742817046331,-500.0,0.00038016,2]
[356610478,1742817046340,-500.0,0.00038016,2]
[356610479,1742817046350,-500.0,0.00038016,2]
[356610480,1742817046360,-500.0,0.00038016,2]
[356610481,1742817046369,-500.0,0.00038016,2]
[356610482,1742817046379,-500.0,0.00038016,2]
[356610483,1742817046388,-500.0,0.00038016,2]
[356610484,1742817046397,-406.92405185,0.00038016,2]
[356610485,1742817046407,-355.61438336,0.00038109,2]
[356610486,1742817046417,-150.0,0.00038356,2]
[356610487,1742817046426,-196.18,0.00038356,60]
[356610488,1742817046436,-907.22,0.00038443,2]
[356610489,1742817046446,-262.49,0.00038443,2]
[356610490,1742817046456,-510.0,0.00038463,7]
[356610491,1742817046466,-500.0,0.00038584,60]
[356610492,1742817046475,-500.0,0.00038584,60]
[356610493,1742817046485,-500.0,0.00038584,60]
[356610494,1742817046495,-200.0,0.00038651,2]
[356610495,1742817046505,-3528.9034,0.00038888,30]
[356610496,1742817046515,-950.0,0.00039,2]
[356610497,1742817046525,-500.0,0.00039132,60]
[356610498,1742817046534,-204.22763475,0.00039152,5]
[356610499,1742817046544,-230.2348056,0.00039155,30]
[356610500,1742817046554,-150.0,0.00039155,30]
[356610501,1742817046563,-811.29635804,0.00039155,30]
[356610502,1742817046573,-703.38243088,0.00039406,2]
[356610503,1742817046583,-200.0,0.00039424,2]
[356610504,1742817046592,-500.0,0.0003968,60]
[356610505,1742817046602,-500.0,0.0003968,60]
[356610506,1742817046611,-500.0,0.0003968,60]
[356610507,1742817046620,-22948.4929902,0.0003969,3]
[356610508,1742817046630,-2000.0,0.000397,2]
[356610509,1742817046640,-187.17,0.000397,6]
[356610510,1742817046649,-724.86,0.00039716,2]
[356610511,1742817046659,-150.0,0.00039726,2]
[356610512,1742817046668,-6442.23146745,0.0003988,2]
[356610513,1742817046678,-151.3,0.00039949,2]
[356610514,1742817046688,-28928.6533453,0.0003996,3]
[356610515,1742817046698,-3059.737524,0.00039963,2]
[356610516,1742817046708,-28928.6533453,0.00039969,3]
[356610517,1742817046717,-22948.4929902,0.00039969,3]
[356610518,1742817046727,-151.3,0.0003998,2]
[356610519,1742817046736,-25421.0653639,0.0003999,3]
[356610521,1742817046975,-9.873e-05,0.0003999,3]
[356610522,1742817046987,-3507.58788267,0.0003999,3]
[356610523,1742817046996,-2300.31355465,0.0003999,3]
[356610528,1742818231509,-250.0,0.00011,2]
[356610529,1742818231520,-150.0,0.000121,2]
[356610530,1742818231529,-150.0,0.000121,2]
[356610531,1742818231539,-113.69803841,0.00013,2]
[356610532,1742818231667,-186.30196159,0.00013,2]
[356610533,1742818231677,-251.70298604,0.00014535,2]
[356610534,1742818231686,-350.0,0.00015,2]
[356610535,1742818231695,-400.0,0.00017,2]
[356610536,1742818231704,-450.0,0.00019,2]
[356610537,1742818231713,-500.0,0.00021,2]
[356610538,1742818231723,-550.0,0.00023,2]
[356610539,1742818231733,-600.0,0.00025,2]
[356610540,1742818231742,-150.99,0.00025,2]
[356610541,1742818231751,-778.69,0.00026849,2]
[356610542,1742818231760,-650.0,0.00027,2]
[356610543,1742818231770,-1805.52844901,0.000289,5]
[356610544,1742818231779,-700.0,0.00029,2]
[356610545,1742818231788,-375.0,0.00031499,2]
[356610546,1742818231798,-131.80100629,0.000315,2]
[356610547,1742818231810,-1868.19899371,0.000315,2]
[356610548,1742818231819,-150.0,0.000318,2]
[356610550,1742818231830,-153.2660527,0.00031813,2]
[356610552,1742818231839,-778.69,0.00032646,2]
[356610553,1742818231848,-291.57,0.000334,7]
[356610554,1742818231858,-153.2,0.000335,31]
[356610555,1742818231868,-153.2,0.000335,31]
[356610556,1742818231877,-153.2,0.000335,31]
[356610557,1742818231886,-153.2,0.000335,31]
[356610558,1742818231896,-153.2,0.000335,31]
[356610559,1742818231905,-2000.0,0.000342,2]
[356610560,1742818231918,-447.85,0.0003608,2]
[356610561,1742818231928,-152.0,0.00036319,3]
[356610562,1742818231938,-1000.0,0.00036832,2]
[356610563,1742818231947,-2000.0,0.00037,2]
[356610564,1742818231957,-1000.0,0.00037136,2]
[356610565,1742818231966,-2307.3773,0.00037228,7]
[356610566,1742818231976,-500.0,0.00037327,2]
[356610567,1742818231985,-15345.04765783,0.00037328,2]
[356610569,1742818237406,-625.83856742,0.00037328,2]
[356610570,1742818237459,-637.31670745,0.00037328,2]
[356610571,1742818237472,-1210.09170438,0.00037328,2]
[356610572,1742818237574,-525.25801007,0.00037328,2]
[356610573,1742818237585,-723.78240021,0.00037328,2]
[356610574,1742818237597,-4832.66495264,0.00037328,2]
[356610575,1742818237607,-153.2,0.000376,31]
[356610576,1742818237616,-153.2,0.000376,31]
[356610577,1742818237626,-153.2,0.000376,31]
[356610578,1742818237636,-153.2,0.000376,31]
[356610579,1742818237646,-153.2,0.000376,31]
[356610580,1742818237655,-153.2,0.000376,31]
[356610581,1742818237665,-153.2,0.000376,31]
[356610582,1742818237675,-153.2,0.000376,31]
[356610583,1742818237684,-153.2,0.000376,31]
[356610584,1742818237694,-153.2,0.000376,31]
[356610585,1742818237703,-200.0,0.00037781,2]
[356610586,1742818237713,-447.85,0.00038344,2]
[356610587,1742818237722,-778.69,0.00038443,2]
[356610588,1742818237731,-534.978,0.00038584,52]
[356610589,1742818237740,-500.0,0.00038584,60]
[356610590,1742818237750,-500.0,0.00038584,60]
[356610591,1742818237759,-5000.0,0.000388,40]
[356610592,1742818237768,-413.70055422,0.00039166,2]
[356610593,1742818237778,-975.98259875,0.0003919,5]
[356610594,1742818237787,-413.70055422,0.00039257,2]
[356610595,1742818237796,-413.70055424,0.00039462,2]
[356610596,1742818237805,-250.0,0.00039563,2]
[356610597,1742818237815,-572.58,0.00039575,2]
[356610598,1742818237824,-175.82,0.00039601,120]
[356610599,1742818237834,-500.0,0.0003968,60]
[356610600,1742818237843,-500.0,0.0003968,60]
[356610601,1742818237851,-2000.0,0.000397,2]
[356610602,1742818237860,-5000.0,0.000398,60]
[356610603,1742818237869,-500.0,0.0003989,2]
[356610604,1742818237878,-152.0,0.00039964,4]
[356610605,1742818237886,-3082.58146882,0.0004,40]
[356610606,1742818237919,-4927.0601892,0.0004,40]
[356610607,1742818237930,-500.0,0.0004,40]
[356610608,1742818237940,-488.66430191,0.0004,40]
[356610609,1742818237959,-532.88397751,0.0004,40]
[356610610,1742818237969,-462.6502438,0.0004,40]
[356610612,1742818239765,-568.28544237,0.0004,40]
[356610613,1742818239984,-918.26692532,0.0004,40]
[356610614,1742818239997,-350.854149,0.0004,40]
[356610615,1742818240009,-618.00430515,0.0004,40]
[356610616,1742818240021,-1701.99429376,0.0004,40]
[356610625,1742818243064,-615.19227045,0.0004,40]
[356610626,1742818243116,-306.91629926,0.0004,40]
[356610627,1742818243169,-1089.11219773,0.0004,40]
[356610628,1742818243224,-7152.00000077,0.0004,40]
[356610629,1742818243236,-618.02888549,0.0004,40]
[356610630,1742818243330,-633.16284759,0.0004,40]
[356610644,1742818245501,-635.6618387,0.0004,40]
[356610651,1742818245551,-1926.11216121,0.0004,40]
[356610656,1742818245604,-602.51204977,0.0004,40]
[356610663,1742818245661,-639.45928206,0.0004,40]
[356610675,1742818245768,-876.61780052,0.0004,40]
[356610679,1742818245797,-20753.97906961,0.0004,40]
[356610681,1742818245806,-365.82,0.0004,120]
[356610683,1742818245816,-157.46681143,0.0004,120]
[356610685,1742818245826,-182.99860162,0.0004,30]
[356610687,1742818245835,-155.8293897,0.0004,30]
[356610689,1742818245844,-3993.6903474,0.0004,30]
[356610691,1742818245853,-150.0,0.0004,2]
[356610693,1742818245863,-586.41240428,0.0004,2]
[356610695,1742818245872,-376.75575277,0.0004,2]
[356610696,1742818245881,-211.15907739,0.0004,2]
[356610697,1742818245891,-1000.0,0.0004,6]
[356610698,1742818245901,-1389.7135061,0.00040169,2]
[356610700,1742818245910,-200.0,0.00040197,2]
[356610702,1742818245919,-447.85,0.00040608,2]
[356610704,1742818245929,-500.0,0.00040776,60]
[356610706,1742818245938,-623.01724033,0.00040776,60]
[356610708,1742818245948,-175.84560772,0.000409,15]
[356610710,1742818245957,-200.0,0.0004097,2]
[356610711,1742818245967,-711.6083826,0.0004099,2]
[356610712,1742818245977,-1289.85380962,0.00041,41]
[356613617,1742819180131,-250.0,0.00011,2]
[356613618,1742819180157,-99750.0,0.00012,2]
[356613626,1742819245851,300.05953132,0.0001,2]
[356613627,1742819274047,2739.64827888,0.0001,2]
[356613628,1742819274671,848.83,0.00031812,30]
[356613629,1742819277986,1341184.29186636,0.0001,2]
[356613630,1742819377672,1498.95,0.00031812,30]
[356613642,1742819431671,-266.635,0.0001188,2]
[356613646,1742819431705,-4165.51249383,0.0001188,2]
[356613647,1742819431715,-319.63895973,0.000119,2]
[356613648,1742819431725,-372.83588172,0.000119,2]
[356613649,1742819431734,-168.04586927,0.00011973,2]
[356613650,1742819431743,-500.0,0.00011973,2]
[356613651,1742819431753,-500.0,0.00011973,2]
[356613652,1742819431762,-21296.65816438,0.00012,2]
[356613653,1742819431788,-449.32685517,0.00012,2]
[356613654,1742819431856,-420.7394915,0.00012,2]
[356613655,1742819431912,-22493.35749876,0.00012,2]
[356613656,1742819431924,-420.816,0.00012,2]
[356613660,1742819437584,-5219.51402086,0.00012,2]
[356613661,1742819437640,-30591.411748,0.00012,2]
[356613662,1742819437842,-537.13002854,0.00012,2]
[356613665,1742819442793,-5765.74704809,0.00012,2]
[356613672,1742819443134,-1375.606,0.00012,2]
[356613673,1742819443148,-32544.52041238,0.00012,2]
[356613895,1742819445786,-3998.54257502,0.00012,2]
[356613896,1742819445846,-16166.90184766,0.00012,2]
[356613909,1742819910755,-332.90552008,0.0001176,2]
[356613911,1742819940955,-95.07747992,0.0001176,2]
[356613912,1742819940977,-1000.0,0.000119,2]
[356613913,1742819940998,-238.0573,0.000119,2]
[356613914,1742819941019,-4628.9242,0.000119,2]
[356613915,1742819941041,-7974.1167,0.000119,2]
[356613916,1742819941066,-790.15172428,0.000119,2]
[356613917,1742819941089,-201.97457986,0.000119,2]
[356613918,1742819941115,-2515.9348431,0.000119,2]
[356613919,1742819941136,-500.0,0.00011973,2]
[356613920,1742819941157,-158.25265457,0.00011973,2]
[356613921,1742819941179,-538.64153023,0.00011973,2]
[356613922,1742819941205,-294329.86898804,0.00012,2]
[356613923,1742819970784,1566.889,0.00031797,30]
[356613931,1742820542060,3500.0,0.00031796,30]
[356613953,1742820631892,-7082.76999322,0.0001189,2]
[356613954,1742820631901,-150.0,0.00011899,2]
[356613955,1742820631911,-67126.2062,0.000119,2]
[356613956,1742820631920,-1000.0,0.000119,2]
[356613957,1742820631929,-7974.1167,0.000119,2]
[356613958,1742820631939,-2670.3527,0.000119,2]
[356613959,1742820631948,-238.0573,0.000119,2]
[356613960,1742820631957,-10020.2365252,0.000119,2]
[356613961,1742820631967,-235.1742,0.000119,2]
[356613962,1742820631977,-238.85191208,0.000119,2]
[356613963,1742820631986,-4628.9242,0.000119,2]
[356613964,1742820631995,-363.42835697,0.000119,2]
[356613965,1742820632005,-2515.9348431,0.000119,2]
[356613966,1742820632014,-248.55725448,0.000119,2]
[356613967,1742820632023,-183.97052295,0.000119,2]
[356613968,1742820632033,-500.0,0.00011973,2]
[356613969,1742820632042,-158.25265457,0.00011973,2]
[356613970,1742820632051,-500.0,0.00011973,2]
[356613971,1742820632061,-37550.9181012,0.00012,2]
[356613972,1742820632097,-757.70112046,0.00012,2]
[356613976,1742820637804,-11644.44866561,0.00012,2]
[356613977,1742820637859,-304.28076881,0.00012,2]
[356613978,1742820637915,-27375.48062358,0.00012,2]
[356613979,1742820637926,-15398.50138268,0.00012,2]
[356613980,1742820637937,-2722.35253567,0.00012,2]
[356614017,1742820639959,-3300.0,0.00012,2]
[356614019,1742820640019,-270.29898099,0.00012,2]
[356614020,1742820640031,-338.06224798,0.00012,2]
[356614024,1742820643216,-1325.50962562,0.00012,2]
[356614033,1742820643493,-1831.06990304,0.00012,2]
[356614039,1742820644800,-2185.11543425,0.00012,2]
[356614040,1742820644812,-52610.21225461,0.00012,2]
[356614041,1742820644833,-3019.19889002,0.00012,2]
[356614042,1742820644846,-6529.51515948,0.00012,2]
[356614055,1742820645811,-4995.69220563,0.00012,2]
[356614056,1742820645931,-1150.00332899,0.00012,2]
[356614057,1742820645943,-700.78568016,0.00012,2]
[356614058,1742820646003,-348.80559152,0.00012,2]
[356614059,1742820646015,-651.11654222,0.00012,2]
[356614060,1742820646064,-17297.758112,0.00012,2]
[356614061,1742820646121,-1587.03359657,0.00012,2]
[356614062,1742820646134,-261.59466892,0.00012,2]
[356614063,1742820646146,-678.46196361,0.00012,2]
[356614065,1742820672165,4003.14,0.00031797,30]
[356614066,1742820702897,-153.34869192,0.000118,2]
[356614067,1742820742070,-215.53962064,0.00011562,2]
[356614068,1742820883817,879.40467187,0.00031797,120]
[356614069,1742820894766,498.11,0.00031797,30]
[356614070,1742820898458,1026.88417251,0.00011999,3]
[356614071,1742820929527,500.4,0.00031797,30]
[356614072,1742820935538,-215.50537936,0.00011,2]
[356614073,1742821332729,-250.0,0.00011,2]
[356614075,1742821366827,-250.0,0.000109,2]
[356614076,1742821386549,-41.71499378,0.000109,2]
[356614077,1742821386570,-1616.10508887,0.00011,2]
[356614078,1742821386592,-34.49462064,0.00011,2]
[356614079,1742821386614,-479.78268984,0.00011,2]
[356614080,1742821386640,-434.73457709,0.00011545,2]
[356614081,1742821386661,-291.71499377,0.00011601,2]
[356614082,1742821386693,-523.29915588,0.0001189,2]
[356614083,1742821386719,-150.0,0.00011899,2]
[356614084,1742821386742,-268.9523,0.000119,2]
[356614085,1742821386763,-50640.8082,0.000119,2]
[356614086,1742821386786,-23176.3237,0.000119,2]
[356614087,1742821386808,-4514.9493,0.000119,2]
[356614088,1742821386830,-1000.0,0.000119,2]
[356614089,1742821386851,-46595.12038013,0.000119,2]
[356614090,1742821391760,-2312.38761987,0.000119,2]
[356614091,1742821391783,-202.0798,0.000119,2]
[356614092,1742821391806,-759.0591,0.000119,2]
[356614093,1742821391828,-2815.0621,0.000119,2]
[356614094,1742821391850,-1981.5657,0.000119,2]
[356614095,1742821391873,-1367.08512567,0.000119,2]
[356614096,1742821391896,-483.361,0.000119,2]
[356614097,1742821391918,-348.49631836,0.000119,2]
[356614098,1742821391940,-363.42835697,0.000119,2]
[356614099,1742821391963,-201.97457986,0.000119,2]
[356614100,1742821391985,-183.97052293,0.000119,2]
[356614101,1742821392008,-492.96193265,0.00011973,2]
[356614102,1742821392034,-88488.56784369,0.00012,2]
[356614103,1742821392287,-100000.0,0.00012,2]
[356614104,1742821393308,-100000.0,0.00012,2]
[356614105,1742821393777,-100000.0,0.00012,2]
[356614106,1742821394388,-100000.0,0.00012,2]
[356614108,1742821427242,-24752.0,0.00012,2]
[356614109,1742821447065,177.15059,0.00012,6]
[356614111,1742821650651,200.0,0.000114,4]
[356614112,1742821652761,500.0,0.000115,4]
[356614113,1742821654870,700.0,0.000116,4]
[356614114,1742821657147,1000.0,0.000117,4]
[356614115,1742821659248,1300.0,0.000118,4]
[356614116,1742821661345,200.0,0.000119,4]
[356614118,1742821801924,350.0,0.00011825,3]
[356614123,1742821832072,-279.9395,0.000118,2]
[356614124,1742821832083,-1038.5957,0.000118,2]
[356614125,1742821832093,-150.0,0.0001185,2]
[356614126,1742821832102,-372.51591086,0.000119,2]
[356614127,1742821832113,-627.48408914,0.000119,2]
[356614128,1742821832122,-138.59961009,0.000119,2]
[356614129,1742821832134,-116.93265503,0.000119,2]
[356614130,1742821832143,-4431.82771544,0.000119,2]
[356614131,1742821832152,-500.0,0.00011973,2]
[356614132,1742821832162,-666.0,0.00011999,2]
[356614133,1742821832171,-150.0,0.00011999,2]
[356614134,1742821832180,-51873.62406396,0.00012,2]
[356614135,1742821832198,-2148.37684794,0.00012,2]
[356614136,1742821832210,-300.0,0.00012,2]
[356614143,1742821832519,-6291.72551574,0.00012,2]
[356614144,1742821832540,-772.1419729,0.00012,2]
[356614145,1742821832551,-3525.62211806,0.00012,2]
[356614146,1742821832563,-4436.73283301,0.00012,2]
[356614147,1742821832575,-294.84302077,0.00012,2]
[356614150,1742821832587,-2337.71584048,0.00012,2]
[356614152,1742821832599,-1409.18840479,0.00012,2]
[356614154,1742821832611,-2427.49534836,0.00012,2]
[356614156,1742821838002,-51439.45800432,0.00012,2]
[356614157,1742821838147,-1971.2000012,0.00012,2]
[356614158,1742821838159,-416.28035391,0.00012,2]
[356614159,1742821838171,-5501.57266455,0.00012,2]
[356614160,1742821838186,-748.26893567,0.00012,2]
[356614161,1742821838197,-1546.39082211,0.00012,2]
[356614162,1742821838226,-314804.79498051,0.00012,2]
[356614163,1742821840319,-2659312.13990124,0.00012,2]
[356614164,1742821840385,-0.00381985,0.00012,2]
[356614165,1742821840397,-254.03314028,0.00012,2]
[356614210,1742821846316,-418.74881976,0.000119,2]
[356614211,1742821846328,-55106.68398056,0.00012,2]
[356614212,1742822166504,177.15059,0.00012,6]
[356614213,1742822521679,177.1506,0.00012,6]
[356614216,1742822739259,-243.31,0.00011,2]
[356614217,1742822790087,150.0,0.00011151,7]
[356614218,1742822814948,-202.672,0.00010945,2]
[356614233,1742822878768,10000.0,0.0001,2]
[356614234,1742822878795,10000.0,0.0001,2]
[356614235,1742822878821,10000.0,0.0001,2]
[356614236,1742822878847,2740.67305216,0.0001,2]
[356614241,1742822955326,-150.0,0.0001089,2]
[356614245,1742823005125,-12.581643,0.0001089,2]
[356614246,1742823005148,-237.418357,0.00010906,2]
[356614251,1742823006990,152.38,0.00025,60]
[356614276,1742823032440,-762.581643,0.00010906,2]
[356614278,1742823032450,-187.09,0.00010919,2]
[356614279,1742823032464,-4973.24435717,0.00010945,2]
[356614280,1742823032505,-1502.07295287,0.00010945,2]
[356614281,1742823033148,-157.6869111,0.00010945,2]
[356614288,1742823038251,-584.47399925,0.00010945,2]
[356614289,1742823038359,-295.49905913,0.00010945,2]
[356614290,1742823038476,-470.91817428,0.00010945,2]
[356614294,1742823038946,-157.6869111,0.00010945,2]
[356614298,1742823040900,-797.6518777,0.00010945,2]
[356614299,1742823040912,-1094.0,0.00010945,2]
[356614300,1742823040924,-17395.4780233,0.00010945,2]
[356614301,1742823040934,-6.69,0.00011,2]
[356614302,1742823040944,-1178.04,0.00011052,2]
[356614303,1742823040954,-1841.5,0.00011099,2]
[356614304,1742823040964,-205.4,0.00011118,2]
[356614305,1742823040973,-2108.68,0.00011134,2]
[356614306,1742823040983,-3636.05,0.00011151,2]
[356614307,1742823040992,-1500.0,0.00011169,2]
[356614308,1742823041002,-9691.0,0.00011517,2]
[356614309,1742823041011,-654.03,0.0001176,2]
[356614310,1742823041022,-187.247,0.0001176,2]
[356614311,1742823041031,-218.78099184,0.0001178,2]
[356614312,1742823041041,-431.045,0.0001188,2]
[356614313,1742823041051,-150.0,0.00011899,2]
[356614314,1742823041062,-302.50628544,0.000119,2]
[356614315,1742823041071,-378.48946112,0.000119,2]
[356614316,1742823041081,-4768.6433041,0.000119,2]
[356614317,1742823041091,-178.50468505,0.000119,2]
[356614318,1742823041101,-182.94809828,0.000119,2]
[356614319,1742823041110,-183.97052293,0.000119,2]
[356614320,1742823041120,-1935.90883075,0.000119,2]
[356614321,1742823041132,-302.50628536,0.00011901,2]
[356614322,1742823041141,-378.4894611,0.00011901,2]
[356614323,1742823041151,-302.50628536,0.00011901,2]
[356614324,1742823041160,-378.4894611,0.00011901,2]
[356614325,1742823041171,-302.50628536,0.00011902,2]
[356614326,1742823041182,-378.4894611,0.00011902,2]
[356614327,1742823041192,-302.50628536,0.00011902,2]
[356614328,1742823041202,-378.4894611,0.00011902,2]
[356614329,1742823041213,-302.50628536,0.00011903,2]
[356614330,1742823041223,-378.4894611,0.00011903,2]
[356614331,1742823041233,-302.50628536,0.00011903,2]
[356614332,1742823041243,-378.4894611,0.00011903,2]
[356614333,1742823041253,-302.50628536,0.00011904,2]
[356614334,1742823041263,-378.4894611,0.00011904,2]
[356614335,1742823041272,-302.50628536,0.00011904,2]
[356614336,1742823041282,-378.4894611,0.00011904,2]
[356614337,1742823041292,-302.50628536,0.00011905,2]
[356614338,1742823041302,-378.4894611,0.00011905,2]
[356614339,1742823041311,-538.64153023,0.00011973,2]
[356614340,1742823041321,-498.73404844,0.00011973,2]
[356614341,1742823041332,-150.0,0.00011979,2]
[356614342,1742823041342,-1583.83,0.0001198,2]
[356614343,1742823041351,-10330.21084573,0.0001199,2]
[356614344,1742823041361,-500.0,0.00011999,2]
[356614345,1742823041371,-2592446.84955589,0.00012,2]
[356614350,1742823044007,-268.88297967,0.00011023,2]
[356614399,1742823856070,1054.34,0.00010704,2]
[356614400,1742823926701,150.0,0.00010709,7]
[356614401,1742823994941,200.0,0.00010709,2]
[356614411,1742824231452,-157.32,0.00010977,2]
[356614412,1742824231463,-150.0,0.00010986,2]
[356614413,1742824231474,-157.32,0.00011013,2]
[356614414,1742824231484,-49.75230334,0.00011023,2]
[356614415,1742824231513,-6220.47471699,0.00011023,2]
[356614416,1742824231522,-157.32,0.0001105,2]
[356614417,1742824231532,-200.0,0.00011054,2]
[356614418,1742824231542,-157.32,0.00011087,2]
[356614419,1742824231552,-586.57,0.00011119,2]
[356614420,1742824231562,-157.32,0.00011123,2]
[356614421,1742824231571,-214.46,0.00011149,2]
[356614422,1742824231582,-157.32,0.0001116,2]
[356614423,1742824231591,-157.32,0.00011196,2]
[356614424,1742824231600,-250.0,0.00011201,2]
[356614425,1742824231609,-157.32,0.00011233,2]
[356614426,1742824231619,-184.49,0.00011257,2]
[356614427,1742824231628,-157.32,0.0001127,2]
[356614428,1742824231637,-2699.39,0.00011291,2]
[356614429,1742824231646,-157.32,0.00011306,2]
[356614430,1742824231655,-157.32,0.00011343,2]
[356614431,1742824231664,-157.32,0.00011379,2]
[356614432,1742824231674,-157.32,0.00011416,2]
[356614433,1742824231685,-523.224,0.0001176,2]
[356614434,1742824231695,-431.045,0.0001188,2]
[356614435,1742824231705,-219.0276558,0.000119,2]
[356614436,1742824231715,-302.50628544,0.000119,2]
[356614437,1742824231724,-302.50628536,0.00011901,2]
[356614438,1742824231734,-150.0,0.00011901,2]
[356614439,1742824231743,-302.50628536,0.00011901,2]
[356614440,1742824231752,-302.50628536,0.00011902,2]
[356614441,1742824231761,-302.50628536,0.00011902,2]
[356614442,1742824231771,-302.50628536,0.00011903,2]
[356614443,1742824231780,-302.50628536,0.00011903,2]
[356614444,1742824231790,-302.50628536,0.00011904,2]
[356614445,1742824231799,-302.50628536,0.00011904,2]
[356614446,1742824231808,-302.50628536,0.00011905,2]
[356614447,1742824231817,-183.97052293,0.00011905,2]
[356614448,1742824231827,-279.16587984,0.00011905,2]
[356614449,1742824231836,-178.50468505,0.00011905,2]
[356614450,1742824231846,-500.0,0.0001194,2]
[356614451,1742824231856,-500.0,0.0001194,2]
[356614452,1742824231865,-500.0,0.0001194,2]
[356614453,1742824231874,-500.0,0.0001194,2]
[356614454,1742824231884,-500.0,0.0001194,2]
[356614455,1742824231894,-474.4353,0.0001194,2]
[356614456,1742824231903,-538.64153023,0.00011973,2]
[356614457,1742824231913,-498.73404844,0.00011973,2]
[356614458,1742824231922,-6987.20685683,0.0001199,2]
[356614459,1742824231937,-419.99283975,0.0001199,2]
[356614460,1742824231964,-475.49962009,0.0001199,2]
[356614461,1742824231975,-365.253643,0.0001199,2]
[356614462,1742824231988,-2082.25788606,0.0001199,2]
[356614463,1742824231998,-500.0,0.00011998,2]
[356614464,1742824232007,-3175.06759272,0.00011999,2]
[356614465,1742824232019,-9172.41120195,0.00011999,2]